fUSD/lending_fUSD_20251109
["ID","MTS","AMOUNT","RATE_DAILY","PERIOD"]
[393458018,1762683037813,-500.0,0.00015687,2]
[393458019,1762683037823,-500.0,0.00015687,2]
[393458020,1762683037834,-500.0,0.00015687,2]
[393458021,1762683037843,-500.0,0.00015687,2]
[393458022,1762683037852,-500.0,0.00015687,2]
[393458023,1762683037862,-500.0,0.00015687,2]
[393458024,1762683037871,-500.0,0.00015687,2]
[393458025,1762683037881,-500.0,0.00015687,2]
[393458026,1762683037892,-500.0,0.00015687,2]
[393458027,1762683037902,-342.73530059,0.00015687,2]
[393458028,1762683037915,-157.26469941,0.00015687,2]
[393458029,1762683037924,-500.0,0.00015687,2]
[393458030,1762683037934,-463.16820186,0.00016438,2]
[393458031,1762683037949,-36.83179814,0.00016438,2]
[393458032,1762683037959,-463.15688257,0.00016438,2]
[393458033,1762683037971,-36.84311743,0.00016438,2]
[393458034,1762683037980,-600.0,0.00016438,2]
[393458035,1762683037989,-839.57688257,0.0001645,2]
[393458036,1762683038001,-362.13078509,0.0001645,2]
[393458037,1762683038013,-1380.94,0.0001645,2]
[393458038,1762683038036,-4141.776292,0.0001645,2]
[393458039,1762683038049,-619.3089963,0.0001645,2]
[393458040,1762683038063,-7477.4,0.0001645,2]
[393458042,1762683038074,-4836.73334981,0.0001645,2]
[393458044,1762683038091,-351.88118535,0.0001645,2]
[393458046,1762683038108,-656.13908269,0.0001645,2]
[393458049,1762683038125,-11325.73539457,0.0001645,2]
[393458057,1762683039746,-309910.28405133,0.0001645,2]
[393458058,1762683039755,-500.81946819,0.00016473,2]
[393458059,1762683039765,-500.0,0.00016473,2]
[393458060,1762683039775,-501.0816036,0.00016473,2]
[393458061,1762683039785,-500.0,0.00016473,2]
[393458062,1762683039795,-500.0,0.00016473,2]
[393458063,1762683039804,-500.0,0.00016473,2]
[393458064,1762683039814,-500.0,0.00016473,2]
[393458065,1762683039828,-500.0,0.00016473,2]
[393458066,1762683039838,-500.0,0.00016473,2]
[393458067,1762683039849,-500.0,0.00016473,2]
[393458068,1762683039859,-500.0,0.00016473,2]
[393458069,1762683039869,-500.0,0.00016473,2]
[393458070,1762683039878,-500.0,0.00016473,2]
[393458071,1762683039888,-500.0,0.00016473,2]
[393458072,1762683039898,-500.0,0.00016473,2]
[393458073,1762683039908,-500.0,0.00016473,2]
[393458074,1762683039917,-500.0,0.00016473,2]
[393458075,1762683039927,-153.64,0.00016562,2]
[393458076,1762683039936,-150.0,0.00016562,2]
[393458077,1762683039947,-971.74,0.00016659,2]
[393458078,1762683039956,-191.72,0.00016712,2]
[393458079,1762683039966,-250.0,0.00016816,2]
[393458080,1762683039975,-260.11334699,0.00016909,2]
[393458081,1762683039985,-971.74,0.00016933,2]
[393458082,1762683039994,-250.0,0.00017,2]
[393458083,1762683040004,-1000.0,0.00017021,2]
[393458084,1762683040014,-1000.0,0.00017021,2]
[393458085,1762683040023,-2500.0,0.00017028,2]
[393458086,1762683040033,-250.0,0.00017028,2]
[393458087,1762683040042,-195.0,0.00017028,2]
[393458088,1762683040053,-1000.0,0.00017036,2]
[393458089,1762683040062,-420.0,0.00017156,2]
[393458090,1762683040072,-971.74,0.00017207,2]
[393458091,1762683040083,-430.29,0.0001724,2]
[393458092,1762683040092,-1680.0,0.00017243,2]
[393458093,1762683040106,-1754.23,0.00017244,2]
[393458094,1762683040117,-500.0,0.00017296,2]
[393458096,1762683040127,-500.0,0.00017296,2]
[393458098,1762683040137,-500.0,0.00017296,2]
[393458100,1762683040147,-35099.6131374,0.00017297,2]
[393458101,1762683040176,-43025.40979374,0.00017297,2]
[393458102,1762683040186,-198.47661067,0.0001732,2]
[393458103,1762683040195,-1330.41962593,0.0001742,2]
[393458104,1762683040205,-971.74,0.00017481,2]
[393458105,1762683040215,-1500.0,0.00017568,2]
[393458106,1762683040225,-1500.0,0.00017568,2]
[393458107,1762683040234,-2291.05946066,0.000176,2]
[393458114,1762683043277,-30975.19983934,0.000176,2]
[393458115,1762683043287,-500.0,0.00017603,2]
[393458116,1762683043296,-381.57,0.00017729,2]
[393458117,1762683043306,-166.67,0.00017738,2]
[393458118,1762683043315,-5000.0,0.00017748,2]
[393458119,1762683043324,-971.74,0.00017755,2]
[393458120,1762683043335,-2000.0,0.000178,2]
[393458121,1762683043344,-428.1782197,0.00017802,7]
[393458122,1762683043354,-199.1904078,0.00017841,2]
[393458123,1762683043363,-151.0,0.00017845,2]
[393458124,1762683043372,-500.0,0.00017848,2]
[393458125,1762683043381,-500.0,0.00017848,2]
[393458126,1762683043391,-9019.13784874,0.00017848,2]
[393458127,1762683043403,-2352.68519998,0.00017848,2]
[393458139,1762683045960,-1006.26,0.00017681,2]
[393458140,1762683045970,-164.44042233,0.00017848,2]
[393458141,1762683046016,-1903.5297196,0.00017848,2]
[393458194,1762683281971,500.0,0.00039121,120]
[393458195,1762683575837,-406.2846,0.00015791,2]
[393458196,1762683575866,-200.0,0.00015873,2]
[393458197,1762683575894,-151.0,0.00015892,2]
[393458198,1762683575923,-250.0,0.00016037,2]
[393458199,1762683575951,-250.0,0.00016139,2]
[393458200,1762683575978,-1065.24,0.00016163,2]
[393458201,1762683576006,-178.63,0.00016181,2]
[393458202,1762683576037,-300.0,0.00016181,2]
[393458203,1762683576067,-1200.0,0.00016182,2]
[393458204,1762683576097,-550.0,0.00016182,2]
[393458205,1762683576130,-397.7008,0.00016182,2]
[393458206,1762683576375,-102.2992,0.00016182,2]
[393458207,1762683576410,-500.0,0.00016182,2]
[393458208,1762683576442,-500.0,0.00016182,2]
[393458209,1762683576474,-500.0,0.00016182,2]
[393458210,1762683576505,-500.0,0.00016182,2]
[393458211,1762683576536,-500.0,0.00016182,2]
[393458212,1762683576567,-500.0,0.00016182,2]
[393458213,1762683576597,-500.0,0.00016182,2]
[393458214,1762683576631,-500.0,0.00016182,2]
[393458215,1762683576661,-500.0,0.00016182,2]
[393458216,1762683576692,-295.4116,0.00016182,2]
[393458217,1762683576784,-204.5884,0.00016182,2]
[393458218,1762683576816,-500.0,0.00016182,2]
[393458219,1762683576846,-500.0,0.00016182,2]
[393458220,1762683576877,-500.0,0.00016182,2]
[393458221,1762683576907,-500.0,0.00016182,2]
[393458222,1762683576937,-500.0,0.00016182,2]
[393458223,1762683576967,-500.0,0.00016182,2]
[393458224,1762683576998,-500.0,0.00016182,2]
[393458225,1762683577028,-500.0,0.00016182,2]
[393458226,1762683577059,-500.0,0.00016182,2]
[393458227,1762683577088,-90.8332,0.00016182,2]
[393458228,1762683577126,-409.1668,0.00016182,2]
[393458229,1762683577157,-500.0,0.00016182,2]
[393458230,1762683577189,-500.0,0.00016182,2]
[393458231,1762683577219,-162.48875735,0.00016182,2]
[393458232,1762683577250,-500.0,0.00016182,2]
[393458233,1762683577281,-500.0,0.00016182,2]
[393458234,1762683577313,-500.0,0.00016182,2]
[393458235,1762683577343,-500.0,0.00016182,2]
[393458236,1762683577376,-500.0,0.00016182,2]
[393458237,1762683577406,-500.0,0.00016182,2]
[393458238,1762683577435,-256.69888529,0.00016182,2]
[393458239,1762683578723,-343.30111472,0.00016182,2]
[393458240,1762683578756,-500.0,0.00016182,2]
[393458241,1762683578789,-500.0,0.00016182,2]
[393458242,1762683578821,-500.0,0.00016182,2]
[393458243,1762683578854,-500.0,0.00016182,2]
[393458244,1762683578887,-500.0,0.00016182,2]
[393458245,1762683578920,-500.0,0.00016182,2]
[393458246,1762683578952,-500.0,0.00016182,2]
[393458247,1762683578983,-500.0,0.00016182,2]
[393458248,1762683579019,-500.0,0.00016182,2]
[393458249,1762683579197,-500.0,0.00016182,2]
[393458250,1762683579230,-500.0,0.00016182,2]
[393458251,1762683579261,-500.0,0.00016182,2]
[393458252,1762683579293,-500.0,0.00016182,2]
[393458253,1762683579325,-500.0,0.00016182,2]
[393458254,1762683579358,-500.0,0.00016182,2]
[393458255,1762683579387,-1200.0,0.00016183,2]
[393458256,1762683579416,-300.0,0.00016183,2]
[393458257,1762683579447,-300.0,0.00016183,2]
[393458258,1762683579738,-3848.471,0.00016185,2]
[393458259,1762683579766,-234.4396,0.00016185,2]
[393458260,1762683583017,-3291.2678132,0.00016185,2]
[393458261,1762683584761,-10000.01,0.00016185,2]
[393458262,1762683584881,-10000.01,0.00016185,2]
[393458263,1762683585007,-25.0385132,0.00016185,2]
[393458264,1762683585035,-9949.9329736,0.00016185,2]
[393458265,1762683585152,-279.885,0.00016185,2]
[393458266,1762683585186,-2067.8018,0.00016185,2]
[393458267,1762683585233,-5304.6364,0.00016185,2]
[393458268,1762683590855,-265.74557935,0.00016222,2]
[393458269,1762683590888,-2280.82918555,0.0001625,2]
[393458270,1762683590921,-208.1410136,0.0001625,2]
[393458271,1762683590956,-500.0,0.00016273,2]
[393458272,1762683590990,-324.9487087,0.00016273,2]
[393458273,1762683591027,-500.0,0.00016273,2]
[393458274,1762683591250,-500.0,0.00016273,2]
[393458275,1762683591290,-340.6810256,0.00016273,2]
[393458276,1762683591422,-159.3189744,0.00016273,2]
[393458277,1762683596932,-500.0,0.00016182,2]
[393458278,1762683596963,-500.0,0.00016182,2]
[393458279,1762683596993,-500.0,0.00016182,2]
[393458280,1762683597023,-500.0,0.00016182,2]
[393458281,1762683597054,-276.43090051,0.00016182,2]
[393458282,1762683597082,-500.0,0.00016182,2]
[393458283,1762683597111,-214.90537102,0.00016273,2]
[393458284,1762683597139,-500.0,0.00016273,2]
[393458285,1762683597168,-502.06961086,0.00016273,2]
[393458286,1762683597196,-500.0,0.00016273,2]
[393458287,1762683597223,-500.0,0.00016273,2]
[393458288,1762683597394,-13.19823522,0.00016273,2]
[393458289,1762683599948,-594.35046661,0.00016273,2]
[393458290,1762683599976,-295.47901701,0.00016273,2]
[393458291,1762683600004,-200.26627605,0.00016273,2]
[393458292,1762683600032,-500.0,0.00016273,2]
[393458293,1762683600061,-505.84948909,0.00016273,2]
[393458294,1762683600091,-426.80169483,0.00016273,2]
[393458295,1762683600121,-500.0,0.00016273,2]
[393458296,1762683600150,-500.64822633,0.00016273,2]
[393458297,1762683600180,-500.0,0.00016273,2]
[393458298,1762683600208,-500.31316522,0.00016273,2]
[393458299,1762683600237,-452.59332972,0.00016273,2]
[393458300,1762683600474,-47.40667028,0.00016273,2]
[393458301,1762683750612,500.0,0.00039118,120]
[393458303,1762683919491,616.35851672,9e-05,2]
[393458304,1762683925488,1019.4760812,0.000108,2]
[393458309,1762684072009,61285.31826764,0.00015,2]
[393458310,1762684096013,1916.13562267,0.0001,2]
[393458311,1762684107956,2713.12867767,0.0001,2]
[393458316,1762684117602,9843.81617346,0.00039118,60]
[393458317,1762684117940,8290.73176807,0.0001,2]
[393458318,1762684117980,11832.39970204,0.00015,2]
[393458319,1762684121059,1342.99963101,0.00013699,2]
[393458330,1762684231926,-503.17010096,0.000154,2]
[393458332,1762684231935,-492.26389069,0.00015701,2]
[393458334,1762684231946,-102.71161654,0.00015701,2]
[393458335,1762684231956,-250.0,0.00015801,2]
[393458336,1762684231965,-224.17012989,0.0001601,2]
[393458337,1762684231976,-250.0,0.0001601,2]
[393458338,1762684232088,-396.09815507,0.0001601,2]
[393458339,1762684232100,-982.15171504,0.0001601,2]
[393458340,1762684232110,-250.0,0.00016013,2]
[393458341,1762684232120,-200.0,0.00016017,2]
[393458342,1762684232130,-875.2883,0.00016101,2]
[393458343,1762684232140,-250.0,0.00016104,2]
[393458344,1762684232150,-493.06019177,0.00016174,2]
[393458345,1762684232160,-1200.0,0.00016183,2]
[393458346,1762684232170,-300.0,0.00016196,2]
[393458347,1762684232179,-550.0,0.00016196,2]
[393458348,1762684232188,-249.91047251,0.000162,2]
[393458349,1762684232198,-500.0,0.000162,2]
[393458350,1762684232208,-171.14536102,0.000162,2]
[393458351,1762684232217,-207.03338682,0.000162,2]
[393458352,1762684232227,-17667.07216273,0.00016201,2]
[393458353,1762684232243,-530.77777805,0.00016201,2]
[393458354,1762684232254,-6499.32789103,0.00016201,2]
[393458366,1762684237850,-500.0,0.00016199,2]
[393458367,1762684237860,-500.0,0.00016199,2]
[393458368,1762684237871,-500.0,0.00016199,2]
[393458369,1762684237881,-500.0,0.00016199,2]
[393458371,1762684237891,-500.0,0.00016199,2]
[393458373,1762684237901,-500.0,0.00016199,2]
[393458375,1762684237911,-500.0,0.00016199,2]
[393458376,1762684237920,-500.0,0.00016199,2]
[393458377,1762684237929,-500.0,0.00016199,2]
[393458378,1762684237939,-500.0,0.00016199,2]
[393458379,1762684237949,-500.0,0.00016199,2]
[393458380,1762684237958,-500.0,0.00016199,2]
[393458381,1762684237967,-500.0,0.00016199,2]
[393458382,1762684237976,-500.0,0.00016199,2]
[393458383,1762684237985,-500.0,0.00016199,2]
[393458384,1762684237995,-500.0,0.00016199,2]
[393458385,1762684238005,-500.0,0.00016199,2]
[393458386,1762684238015,-500.0,0.00016199,2]
[393458387,1762684238024,-197.52596421,0.00016199,2]
[393458388,1762684238034,-25.08636757,0.00016199,2]
[393458413,1762684240060,-474.91363243,0.00016199,2]
[393458415,1762684240070,-500.0,0.00016199,2]
[393458417,1762684240079,-500.0,0.00016199,2]
[393458419,1762684240089,-118432.38583169,0.00016201,2]
[393458421,1762684240098,-17304.9265944,0.00016201,2]
[393458423,1762684240108,-5781.8544257,0.00016201,2]
[393458425,1762684240118,-187.32691224,0.00016222,2]
[393458427,1762684240127,-999.0,0.00016246,3]
[393458429,1762684240137,-500.0,0.00016273,2]
[393458431,1762684240147,-500.0,0.00016273,2]
[393458433,1762684240156,-40202.13,0.00016273,2]
[393458435,1762684240166,-40018.57217801,0.00016273,2]
[393458438,1762684240178,-2727.98581906,0.00016273,2]
[393458442,1762684240210,-505.85,0.00016273,2]
[393458457,1762684240347,-10118.53502163,0.00016273,2]
[393458499,1762684244784,-1804.8869813,0.00016273,2]
[393458500,1762684244794,-8657.65,0.00016273,2]
[393458501,1762684244808,-999.99,0.00016273,2]
[393458502,1762684244818,-1360.89,0.00016273,2]
[393458503,1762684244828,-9999.99,0.00016273,2]
[393458504,1762684244837,-8304.96,0.00016273,2]
[393458505,1762684244847,-6448.65,0.00016273,2]
[393458506,1762684244858,-1452.76,0.00016273,2]
[393458507,1762684244868,-1186.88,0.00016273,2]
[393458508,1762684244879,-499.99,0.00016273,2]
[393458509,1762684244889,-3577.32,0.00016273,2]
[393458510,1762684244899,-3643.29,0.00016273,2]
[393458511,1762684244908,-1720.14,0.00016273,2]
[393458512,1762684244918,-150.99,0.00016273,2]
[393458513,1762684244928,-500.0,0.00016273,2]
[393458514,1762684244938,-1590.5,0.00016274,2]
[393458515,1762684244948,-150.99,0.00016274,2]
[393458516,1762684244957,-782.88395207,0.00016274,2]
[393458517,1762684245355,-9217.10604793,0.00016274,2]
[393458518,1762684245365,-9999.99,0.00016274,2]
[393458519,1762684245375,-1281.12,0.00016274,2]
[393458520,1762684245385,-500.0,0.00016285,2]
[393458521,1762684245394,-500.0,0.00016285,2]
[393458522,1762684245408,-500.0,0.00016285,2]
[393458523,1762684245418,-500.0,0.00016285,2]
[393458524,1762684245428,-88873.8879948,0.00016285,2]
[393458525,1762684245439,-76422.23964991,0.00016285,2]
[393458528,1762684246064,-646.98178923,0.00016285,2]
[393458529,1762684246119,-103267.91151829,0.00016285,2]
[393458530,1762684246131,-150788.97904777,0.00016285,2]
[393458531,1762684246140,-1188.62,0.00016322,2]
[393458532,1762684246149,-493.06019174,0.00016366,2]
[393458533,1762684246159,-187.32691217,0.00016408,2]
[393458534,1762684246168,-880.38,0.00016438,2]
[393458535,1762684246177,-500.0,0.00016438,2]
[393458536,1762684246187,-500.0,0.00016438,2]
[393458537,1762684246196,-422.14507491,0.00016438,2]
[393458538,1762684246205,-500.0,0.00016438,2]
[393458539,1762684246214,-500.0,0.00016438,2]
[393458540,1762684246223,-500.0,0.00016438,2]
[393458541,1762684246232,-226.52982263,0.00016438,2]
[393458542,1762684246242,-500.0,0.00016438,2]
[393458543,1762684246252,-500.0,0.00016438,2]
[393458544,1762684246261,-500.0,0.00016438,2]
[393458545,1762684246270,-500.0,0.00016438,2]
[393458546,1762684246279,-500.0,0.00016438,2]
[393458547,1762684246289,-500.0,0.00016438,2]
[393458548,1762684246299,-500.0,0.00016438,2]
[393458549,1762684246310,-500.0,0.00016438,2]
[393458550,1762684246320,-500.0,0.00016438,2]
[393458551,1762684246330,-500.0,0.00016438,2]
[393458552,1762684246340,-500.0,0.00016438,2]
[393458553,1762684246350,-500.0,0.00016438,2]
[393458554,1762684246359,-500.0,0.00016438,2]
[393458555,1762684246369,-500.0,0.00016438,2]
[393458556,1762684246378,-500.0,0.00016438,2]
[393458557,1762684246388,-500.0,0.00016438,2]
[393458558,1762684246398,-500.0,0.00016438,2]
[393458559,1762684246408,-2327.0,0.00016514,2]
[393458560,1762684246418,-493.06019174,0.00016558,2]
[393458561,1762684246427,-187.32691217,0.00016595,2]
[393458562,1762684246437,-21490.80967861,0.00016627,2]
[393458563,1762684246447,-3025.4294,0.00016631,2]
[393458564,1762684246456,-880.38,0.00016712,2]
[393458565,1762684246466,-151.0,0.00016728,2]
[393458566,1762684246476,-47159.54,0.00016731,2]
[393458567,1762684246486,-493.06019174,0.00016749,2]
[393458569,1762684246495,-187.32691217,0.00016781,2]
[393458570,1762684246505,-334.97782505,0.00016821,2]
[393458572,1762684246514,-1000.0,0.00016821,2]
[393458573,1762684246523,-500.0,0.00016877,2]
[393458574,1762684246532,-195.0,0.0001694,2]
[393458575,1762684246541,-493.06019174,0.00016941,2]
[393458576,1762684246550,-187.32691217,0.00016968,2]
[393458577,1762684246559,-880.38,0.00016986,2]
[393458578,1762684246569,-15499.99999998,0.0001699,2]
[393458579,1762684246578,-250.0,0.00017,2]
[393458580,1762684246588,-493.06019174,0.00017133,2]
[393458581,1762684246597,-187.32691217,0.00017154,2]
[393458582,1762684246607,-432.33,0.00017179,2]
[393458583,1762684246615,-880.38,0.0001726,2]
[393458584,1762684246625,-534.0,0.00017314,2]
[393458585,1762684246634,-1200.83093964,0.0001732,2]
[393458586,1762684246644,-493.06019174,0.00017325,2]
[393458587,1762684246653,-187.32691217,0.00017341,2]
[393458588,1762684246662,-1508.31279467,0.00017368,2]
[393458589,1762684246671,-195.0,0.00017381,2]
[393458590,1762684246680,-151.0,0.00017408,2]
[393458591,1762684246689,-151.0,0.00017408,2]
[393458592,1762684246699,-151.0,0.00017408,2]
[393458593,1762684246708,-151.0,0.00017408,2]
[393458594,1762684246717,-151.0,0.00017408,2]
[393458595,1762684246730,-151.0,0.00017408,2]
[393458596,1762684246739,-151.0,0.00017408,2]
[393458597,1762684246749,-151.0,0.00017408,2]
[393458598,1762684246758,-151.0,0.00017408,2]
[393458599,1762684246767,-151.0,0.00017408,2]
[393458600,1762684246776,-151.0,0.00017408,2]
[393458601,1762684246785,-151.0,0.00017408,2]
[393458602,1762684246795,-151.0,0.00017408,2]
[393458603,1762684246808,-151.0,0.00017408,2]
[393458604,1762684246818,-151.0,0.00017408,2]
[393458605,1762684246827,-151.0,0.00017408,2]
[393458606,1762684246836,-151.0,0.00017408,2]
[393458607,1762684246846,-151.0,0.00017408,2]
[393458608,1762684246860,-151.0,0.00017408,2]
[393458609,1762684246871,-151.0,0.00017408,2]
[393458610,1762684246883,-350.0,0.00017408,2]
[393458611,1762684246892,-12948.4100434,0.00017414,2]
[393458612,1762684246902,-45290.58252138,0.00017418,2]
[393458613,1762684246915,-1627.28430881,0.00017418,2]
[393458614,1762684246931,-445.41,0.00017418,2]
[393458615,1762684246943,-4400.33003597,0.00017418,2]
[393458616,1762684246966,-378.43528873,0.00017418,2]
[393458617,1762684246977,-2919.25678843,0.00017418,2]
[393458618,1762684246987,-556.81298057,0.00017418,2]
[393458620,1762684684642,-153.397741,0.00015392,2]
[393458621,1762684690072,-196.55604637,0.00015392,2]
[393458622,1762684752721,4161.92,0.00039114,120]
[393458623,1762684752955,4161.92,0.00039114,120]
[393458624,1762684753727,4161.92,0.00039114,120]
[393458625,1762684753961,4161.92,0.00039114,120]
[393458626,1762684754195,4161.92,0.00039114,120]
[393458627,1762684754433,4161.92,0.00039114,120]
[393458628,1762684754683,4161.92,0.00039114,120]
[393458629,1762684754928,4161.92,0.00039114,120]
[393458630,1762684755154,4161.92,0.00039114,120]
[393458631,1762684755395,4161.92,0.00039114,120]
[393458632,1762684755657,4161.92,0.00039114,120]
[393458633,1762684755897,4161.92,0.00039114,120]
[393458634,1762684756167,4161.92,0.00039114,120]
[393458635,1762684756413,4161.92,0.00039114,120]
[393458636,1762684756664,4161.92,0.00039114,120]
[393458637,1762684756913,4161.92,0.00039114,120]
[393458638,1762684757166,4161.92,0.00039114,120]
[393458639,1762684757404,4161.92,0.00039114,120]
[393458640,1762684757678,4161.92,0.00039114,120]
[393458641,1762684757944,4161.92,0.00039114,120]
[393458642,1762684758187,4161.92,0.00039114,120]
[393458643,1762684758426,4161.92,0.00039114,120]
[393458644,1762684758665,4161.92,0.00039114,120]
[393458645,1762684758911,4162.05261065,0.00039114,120]
[393458646,1762684759099,-151.0,0.00015392,2]
[393458647,1762684760747,-327.0242828,0.00015392,2]
[393458648,1762684764112,-21.9757172,0.00015392,2]
[393458649,1762684764135,-280.49315639,0.00015392,2]
[393458650,1762684769992,-219.50684361,0.00015392,2]
[393458651,1762684770017,-116.4050777,0.00015392,2]
[393458652,1762684773252,-177.76598069,0.00015392,2]
[393458653,1762684789141,-205.82894161,0.00015392,2]
[393458654,1762684789164,-40.34378302,0.00015392,2]
[393458655,1762684794673,-160.0,0.00015392,2]
[393458656,1762684799042,-201.58481839,0.00015392,2]
[393458657,1762684802015,-282.3733987,0.00015391,2]
[393458658,1762684819170,-160.90734079,0.00015314,2]
[393458659,1762684823695,-327.93790234,0.00015314,2]
[393458660,1762684828304,-280.1785637,0.00015314,2]
[393458661,1762684830510,-177.08444831,0.00015314,2]
[393458662,1762684832542,-284.72870186,0.00015314,2]
[393458663,1762684832565,-15.27129814,0.00015391,2]
[393458664,1762684850222,-2.35530316,0.00015391,2]
[393458665,1762684850246,-230.63745807,0.00015391,2]
[393458666,1762684852372,-228.46391312,0.00015391,2]
[393458667,1762684854036,-184.79538882,0.00015391,2]
[393458668,1762684855699,-315.0783968,0.00015391,2]
[393458669,1762684858330,-173.69421465,0.00015391,2]
[393458670,1762684859876,-67.33062854,0.00015391,2]
[393458671,1762684859904,-98.07139859,0.00015392,2]
[393458672,1762684859925,-500.0,0.00015392,2]
[393458673,1762684859946,-62.47268738,0.00015392,2]
[393458674,1762684862739,510.19,7.799e-05,2]
[393458675,1762684862935,510.19,8.193e-05,2]
[393458676,1762684863173,510.19,8.587e-05,2]
[393458677,1762684863390,510.19,8.982e-05,2]
[393458678,1762684863744,510.19,9.376e-05,2]
[393458679,1762684863951,510.19,9.771e-05,2]
[393458680,1762684864142,510.19,0.00010165,2]
[393458681,1762684865149,510.19,0.00010559,2]
[393458682,1762684865426,510.19,0.00010954,2]
[393458683,1762684865826,510.19,0.00011348,2]
[393458684,1762684866034,510.19,0.00011742,2]
[393458685,1762684866221,510.19,0.00012137,2]
[393458686,1762684866420,510.19,0.00012531,2]
[393458687,1762684866839,510.19,0.00012925,2]
[393458688,1762684867473,510.19,0.0001332,2]
[393458689,1762684867700,510.19,0.00013714,2]
[393458690,1762684867887,510.19,0.00014108,2]
[393458691,1762684868095,510.19,0.00014503,2]
[393458692,1762684868287,510.19,0.00014897,2]
[393458693,1762684879494,-456.61672255,0.00015292,2]
[393458694,1762684921694,500.0,0.00039114,120]
[393458695,1762684921907,500.0,0.00039114,120]
[393458696,1762684922129,500.0,0.00039114,120]
[393458697,1762684922392,500.0,0.00039114,120]
[393458698,1762684922626,569.11286811,0.00039114,120]
[393458699,1762684932583,161.79,0.00015,2]
[393458700,1762684999157,-53.57327745,0.00015292,2]
[393458701,1762684999181,-138.56238175,0.00015341,2]
[393458702,1762685054548,202.0,0.000164,7]
[393458703,1762685119197,-267.53273093,0.00015256,2]
[393458704,1762685123360,-102.27726907,0.00015256,2]
[393458705,1762685123384,-60.88273093,0.00015298,2]
[393458706,1762685123642,218.4442228,0.00039114,120]
[393458707,1762685126932,-155.14,0.00015298,2]
[393458708,1762685129111,-303.92547475,0.00015298,2]
[393458709,1762685133461,-216.1147564,0.00015298,2]
[393458710,1762685149079,-184.99828461,0.00015298,2]
[393458711,1762685149109,-55.3133218,0.00015299,2]
[393458712,1762685151902,-171.41188575,0.00015299,2]
[393458713,1762685154797,-186.53649347,0.00015299,2]
[393458714,1762685158207,-283.26707738,0.00015299,2]
[393458715,1762685160471,-151.0,0.00015299,2]
[393458716,1762685209197,-283.15824942,0.0001519,2]
[393458717,1762685211638,-257.68869896,0.0001519,2]
[393458718,1762685213362,-1212.89629305,0.0001519,2]
[393458719,1762685215096,-355.05,0.0001519,2]
[393458720,1762685216628,-288.08448633,0.0001519,2]
[393458721,1762685221573,-496.58811425,0.0001519,2]
[393458722,1762685224611,-151.0,0.0001519,2]
[393458723,1762685226466,-158.5068257,0.0001519,2]
[393458724,1762685228527,-300.0,0.0001519,2]
[393458725,1762685231931,-216.1585042,0.0001519,2]
[393458726,1762685235475,-362.92572196,0.0001519,2]
[393458727,1762685238442,-287.0233663,0.0001519,2]
[393458745,1762685254283,-359.99614203,0.0001519,2]
[393458746,1762685344147,-151.0,0.0001515,2]
[393458747,1762685349338,-160.9951893,0.0001515,2]
[393458748,1762685350803,-379.07079502,0.0001515,2]
[393458749,1762685356735,-168.41110189,0.0001515,2]
[393458750,1762685358315,-248.34958729,0.0001515,2]
[393458751,1762685374570,-325.57608692,0.0001515,2]
[393458752,1762685378755,-300.0,0.0001515,2]
[393458753,1762685381690,-224.22517888,0.0001515,2]